bitfinex-derivatives/quotes_ETHF0:USTF0_20250410
["timestamp","ask_amount","ask_price","bid_price","bid_amount"]
[1744292965473,8.69728,1574.5,1574.4,0.00953864]
[1744292965879,0.00953864,1574.7,1574.4,0.00953864]
[1744292966070,1.27095,1574.6,1574.5,14.73486808]
[1744292966469,4.47875,1574.6,1574.5,14.73486808]
[1744292967083,1.27095,1574.6,1574.5,14.73486808]
[1744292970170,1.27095,1574.6,1574.5,22.46846808]
[1744292970685,0.00953864,1574.7,1574.6,1.2709]
[1744292970879,0.00953864,1574.7,1574.5,25.67626808]
[1744292971071,1.28041864,1574.7,1574.5,25.67626808]
[1744292971278,1.28041864,1574.7,1574.6,1.2709]
[1744292971483,0.00953864,1574.7,1574.6,1.2709]
[1744292972782,0.00953864,1574.7,1574.6,6.2709]
[1744292974083,8.64e-06,1574.7,1574.6,6.2709]
[1744292974282,8.64e-06,1574.7,1574.6,11.1513]
[1744292975486,7.2563175,1575.5,1575.4,1.27025]
[1744292975783,7.2563175,1575.5,1575.4,4.47805]
[1744292975985,7.2563175,1575.5,1575.4,9.47805]
[1744292976479,7.6417,1576.0,1575.4,8.2078]
[1744292976680,7.2563175,1576.1,1576.0,1.26977]
[1744292977192,7.2563175,1576.1,1576.0,4.47757]
[1744292978076,7.2563175,1576.1,1576.0,12.00357]
[1744292978277,8.5260075,1576.1,1576.0,4.47757]
[1744292978477,7.2563175,1576.1,1576.0,4.47757]
[1744292978974,8.5260075,1576.1,1576.0,3.2078]
[1744292979179,14.9771175,1576.1,1575.8,4.47771]
[1744292979481,1.26985,1575.9,1575.8,3.2078]
[1744292979688,1.26999,1575.8,1575.6,7.6284]
[1744292979878,1.27001,1575.7,1575.6,8.89849]
[1744292980389,8.99071,1575.9,1575.6,7.6284]
[1744292980585,7.7208,1575.9,1575.8,1.26993]
[1744292980787,8.9907,1575.9,1575.7,4.47774]
[1744292981083,1.26983,1576.0,1575.8,1.26993]
[1744292981389,1.26985,1575.9,1575.8,7.6284]
[1744292981885,1.26985,1575.9,1575.3,8.11673864]
[1744292981886,5.0,1575.9,1575.3,8.11673864]
[1744292982082,1.27025,1575.4,1575.3,3.21733864]
[1744292982492,47.07025,1575.4,1575.3,0.00953864]
[1744292982880,50.27805,1575.4,1575.3,0.00953864]
[1744292983190,47.07025,1575.4,1575.3,0.00953864]
[1744292983488,50.27805,1575.4,1575.3,8.64e-06]
[1744292984290,1.27033,1575.3,1575.2,8.23672821]
[1744292984489,8.94313,1575.3,1575.2,8.23672821]
[1744292984691,13.94313,1575.3,1575.2,8.23672821]
[1744292985590,1.27041,1575.2,1575.1,0.00953864]
[1744292985781,8.94321,1575.2,1575.1,0.00953864]
[1744292985982,13.94321,1575.2,1575.1,0.00953864]
[1744292986383,8.94321,1575.2,1575.1,0.00953864]
[1744292986595,13.94321,1575.2,1575.1,0.00953864]
[1744292986897,1.27076,1574.8,1574.6,3.2078]
[1744292987092,1.27076,1574.8,1574.7,8.87829]
[1744292987297,1.27076,1574.8,1574.7,7.6075]
[1744292987596,1.27076,1574.8,1574.7,8.87831]
[1744292988093,1.27069,1574.9,1574.8,1.2707]
[1744292988287,1.27063,1575.0,1574.9,1.27064]
[1744292988486,1.27063,1575.0,1574.9,7.7805]
[1744292988989,1.27081,1574.7,1574.6,0.00953864]
[1744292989595,4.47861,1574.7,1574.6,0.00953864]
[1744292989893,1.27081,1574.7,1574.6,0.00953864]
[1744292990288,9.47861,1574.7,1574.6,0.00953864]
[1744292990489,1.27106,1574.4,1574.3,3.2078]
[1744292990888,7.5557,1574.6,1574.3,3.2078]
[1744292991094,8.82666,1574.6,1574.5,1.27098]
[1744292991393,8.82666,1574.6,1574.4,7.8643]
[1744292991394,1.27098,1574.5,1574.4,7.8643]
[1744292991689,0.00953864,1574.7,1574.4,7.87383864]
[1744292992098,1.27098,1574.5,1574.4,0.00953864]
[1744292992692,0.00953864,1574.7,1574.5,1.27095]
[1744292992890,1.27092,1574.6,1574.4,0.00953864]
[1744292993092,1.27092,1574.6,1574.5,1.27098]
[1744292993292,0.00953864,1574.7,1574.5,3.2078]
[1744292993491,0.00953864,1574.7,1574.6,1.2709]
[1744292994390,8.64e-06,1574.7,1574.6,6.2709]
[1744292994994,8.64e-06,1574.7,1574.6,11.4203]
[1744292997405,8.5264275,1575.6,1575.5,1.27017]
[1744292997697,7.2563175,1575.6,1575.5,12.96397]
[1744292998499,8.5264075,1575.6,1575.5,8.486]
[1744292998804,1.27017,1575.5,1575.4,0.00953864]
[1744292999007,8.56407,1575.5,1575.4,0.00953864]
[1744292999305,13.56407,1575.5,1575.4,0.00953864]
[1744292999606,8.56407,1575.5,1575.4,0.00953864]
[1744292999907,13.56407,1575.5,1575.4,0.00953864]
[1744293000406,13.56407,1575.5,1575.4,8.64e-06]
[1744293000800,1.27074,1574.8,1574.6,3.2078]
[1744293001102,3.17624,1575.1,1574.4,3.2078]
[1744293001306,7.7113,1575.0,1574.4,3.2078]
[1744293001506,7.7113,1575.0,1574.8,3.2078]
[1744293001803,7.7113,1575.2,1574.9,1.27063]
[1744293002104,1.27057,1575.0,1574.9,1.27063]
[1744293002305,6.38438,1575.0,1574.7,0.00953864]
[1744293002502,1.27073,1574.8,1574.7,0.00953864]
[1744293002804,4.47853,1574.8,1574.7,0.00953864]
[1744293003106,9.47853,1574.8,1574.7,0.00953864]
[1744293003306,4.47853,1574.8,1574.7,0.00953864]
[1744293003804,9.47853,1574.8,1574.7,0.00953864]
[1744293004199,9.47853,1574.8,1574.1,16.0005]
[1744293004200,3.17746,1574.5,1574.1,10.7233]
[1744293004504,6.38526,1574.5,1574.1,3.2078]
[1744293004709,1.27122,1574.2,1574.1,4.47907]
[1744293004899,7.7047,1574.4,1574.0,22.25036808]
[1744293004900,1.2713,1574.1,1574.0,22.25036808]
[1744293005097,12.1838,1574.1,1574.0,7.98592265]
[1744293005302,1.27138,1574.0,1573.9,16.60092942]
[1744293005496,1.27154,1573.8,1573.7,19.8049088]
[1744293005699,45.27934,1573.8,1573.7,9.1239288]
[1744293006003,48.51,1573.8,1573.7,9.1239288]
[1744293006213,49.78154,1573.8,1573.7,9.1239288]
[1744293006409,54.78154,1573.8,1573.7,9.1239288]
[1744293006602,49.78154,1573.8,1573.7,9.1239288]
[1744293007506,54.78154,1573.8,1573.7,9.1239288]
[1744293007702,49.78154,1573.8,1573.7,9.1239288]
[1744293007907,54.78154,1573.8,1573.7,9.1239288]
[1744293008110,54.78154,1573.8,1573.7,6.3334188]
[1744293008406,54.78154,1573.8,1573.7,1.1238588]
[1744293008607,54.78154,1573.8,1573.7,8.8e-06]
[1744293008808,49.78154,1573.8,1573.7,8.8e-06]
[1744293009303,49.78154,1573.8,1573.7,0.01094764]
[1744293009504,3.2078,1574.1,1573.9,1.27144]
[1744293009709,1.27135,1574.1,1573.9,1.27144]
[1744293010010,0.00953864,1574.2,1574.0,8.59863157]
[1744293010206,1.2713,1574.1,1574.0,0.01251157]
[1744293010406,1.2574445,1573.9,1573.7,7.3148]
[1744293010600,1.2574445,1573.9,1573.7,8.58636]
[1744293010806,7.7239,1574.0,1573.7,10.5226]
[1744293011313,1.28078864,1574.2,1573.9,3.2078]
[1744293011506,0.00953864,1574.2,1574.1,1.2713]
[1744293011706,0.00953864,1574.2,1574.1,4.4791]
[1744293011906,0.00953864,1574.2,1574.1,9.4791]
[1744293012102,9.48736639,1574.5,1574.2,1.27122]
[1744293012416,11.93086268,1574.7,1574.6,1.2709]
[1744293012611,11.93086268,1574.7,1574.6,12.9597]
[1744293012812,6.38325,1575.5,1574.6,17.9597]
[1744293013115,11.0585,1575.5,1575.1,3.2078]
[1744293013314,0.00953864,1575.2,1575.1,4.47829]
[1744293013611,8.64e-06,1575.2,1575.1,4.47829]
[1744293014019,8.64e-06,1575.2,1575.1,3.2078]
[1744293014315,1.27041864,1575.2,1575.1,3.2078]
[1744293014707,1.27057,1575.0,1574.9,0.00953864]
[1744293015116,7.6554,1575.1,1574.9,0.00953864]
[1744293015416,1.27057,1575.0,1574.9,0.00953864]
[1744293015915,1.2709,1574.6,1574.4,4.4788]
[1744293016120,1.27119,1574.3,1574.1,4.47908]
[1744293016423,1.2712,1574.3,1574.1,1.2713]
[1744293016622,1.2712,1574.3,1574.0,7.4078]
[1744293016810,7.6554,1574.4,1574.1,1.27124]
[1744293017117,1.27114,1574.3,1574.1,0.00953864]
[1744293017310,8.93604864,1574.4,1574.1,0.00953864]
[1744293017507,7.66493864,1574.4,1574.1,0.00953864]
[1744293017713,1.27118,1574.3,1574.1,1.28080864]
[1744293017910,7.66493864,1574.4,1574.1,0.00953864]
[1744293018119,1.27122,1574.2,1574.1,0.00953864]
[1744293018518,1.27119,1574.3,1574.1,1.28078864]
[1744293018822,1.27114,1574.3,1574.2,7.421]
[1744293019116,7.66493864,1574.4,1574.2,7.421]
[1744293019315,0.00953864,1574.4,1574.3,4.47894]
[1744293019518,3.2078,1575.0,1574.3,11.6878]
[1744293019721,3.2078,1574.8,1574.4,7.421]
[1744293019920,7.6147,1574.7,1574.4,7.421]
[1744293020216,1.27098,1574.5,1574.4,7.421]
[1744293020519,1.27122,1574.2,1574.1,0.00953864]
[1744293020719,4.47902,1574.2,1574.1,0.00953864]
[1744293021108,45.27902,1574.2,1574.1,0.00953864]
[1744293022217,3.17888,1573.8,1573.3,13.2512]
[1744293022416,1.27175,1573.6,1573.4,8.94316]
[1744293022616,1.27178,1573.5,1573.4,7.6713]
[1744293023111,7.6444,1573.7,1573.4,8.9431]
[1744293023317,1.28126864,1573.6,1573.4,7.6713]
[1744293023518,0.00953864,1573.6,1573.5,1.27178]
[1744293023914,1.28123864,1573.6,1573.5,1.27178]
[1744293024115,0.00953864,1573.6,1573.4,7.6713]
[1744293024317,0.00953864,1573.6,1573.5,1.27178]
[1744293024513,8.64e-06,1573.6,1573.5,9.75378]
[1744293024720,8.64e-06,1573.6,1573.5,26.80468]
[1744293025120,1.27104,1574.5,1574.3,1.2711]
[1744293025417,1.27065,1574.9,1574.8,1.2707]
[1744293025622,1.27065,1574.9,1574.7,1.27075]
[1744293025822,9.14899,1575.0,1574.9,1.27065]
[1744293026024,1.27052,1575.1,1574.9,1.27065]
[1744293026224,0.00953864,1575.1,1574.8,10.52413864]
[1744293026421,1.27057,1575.0,1574.9,7.3068]
[1744293027025,0.00953864,1575.1,1574.9,7.3068]
[1744293027225,1.28006864,1575.1,1574.9,8.5774]
[1744293027426,0.00953864,1575.1,1574.9,8.57744]
[1744293027717,0.00953864,1575.1,1574.9,7.3068]
[1744293027925,0.00953864,1575.1,1574.9,8.5774]
[1744293028120,0.00953864,1575.1,1574.9,7.3068]
[1744293028421,45.28782864,1575.1,1575.0,0.01141083]
[1744293028625,42.08002864,1575.1,1575.0,0.01141083]
[1744293028826,1.25752085,1574.9,1574.8,0.00953864]
[1744293029323,7.857,1575.0,1574.8,0.00953864]
[1744293029524,1.27065,1575.0,1574.8,1.28024864]
[1744293029725,1.27065,1575.0,1574.9,7.7187]
[1744293030222,1.27065,1574.9,1574.8,0.00953864]
[1744293030421,3.2078,1574.9,1574.2,13.5843]
[1744293030617,3.17715,1574.7,1574.3,1.27114]
[1744293030814,3.2078,1574.9,1574.2,16.7921]
[1744293031013,1.27067,1574.9,1574.8,1.27072]
[1744293031221,1.27067,1574.9,1574.7,1.27075]
[1744293031413,44.01733864,1575.1,1574.6,3.2078]
[1744293031623,44.01733864,1575.1,1574.7,0.00953864]
[1744293031813,1.27061,1575.0,1574.9,1.27064]
[1744293032018,1.28004864,1575.1,1575.0,1.27057]
[1744293032234,0.00953864,1575.1,1575.0,4.47837]
[1744293032721,4.83987323,1575.6,1575.5,1.27017]
[1744293033117,4.83987323,1575.6,1575.5,6.27017]
[1744293033324,3.2078,1576.3,1575.5,16.05612]
[1744293033519,7.6504,1576.4,1575.8,3.2078]
[1744293033720,1.26954,1576.3,1576.1,1.26963]
[1744293034023,0.00953864,1576.3,1576.2,9.15031]
[1744293034222,0.00953864,1576.3,1576.2,9.16062002]
[1744293034424,1.27905864,1576.3,1576.2,7.89101002]
[1744293034823,1.27905864,1576.3,1576.2,7.89272834]
[1744293035126,1.27905864,1576.3,1576.2,0.01202834]
[1744293035327,1.27905864,1576.3,1576.2,7.89272834]
[1744293035521,6.27905864,1576.3,1576.2,0.01202834]
[1744293036527,1.26977,1576.0,1575.9,0.00953864]
[1744293036921,0.00953864,1576.3,1576.2,1.26961]
[1744293037317,0.00953864,1576.3,1576.2,6.26961]
[1744293037525,0.00953864,1576.3,1576.2,14.13191]
[1744293037917,0.00953864,1576.3,1576.2,14.90864103]
[1744293038118,12.10165194,1576.9,1576.3,3.17367]
[1744293038317,12.10165194,1576.9,1576.8,4.47692]
[1744293038622,4.26e-06,1577.2,1576.8,3.2078]
[1744293038928,1.26896,1577.0,1576.9,0.77673103]
[1744293039135,8.64505426,1577.2,1576.8,4.4769]
[1744293039335,0.00953864,1577.1,1576.8,3.21733864]
[1744293039528,1.26898,1577.0,1576.8,3.21733864]
[1744293039728,0.00953864,1577.1,1576.8,0.00953864]
[1744293039936,1.27846864,1577.1,1576.8,3.21733864]
[1744293040233,1.26904,1576.9,1576.8,0.00953864]
[1744293040531,1.26904,1576.9,1576.8,0.01985695]
[1744293040831,8.2078,1576.9,1576.4,1.26942]
[1744293041131,1.26934,1576.6,1576.3,4.47729]
[1744293041331,7.3762,1576.8,1576.3,3.2078]
[1744293041630,7.3762,1576.8,1576.5,3.2078]
[1744293041631,1.26921,1576.7,1576.5,3.2078]
[1744293041831,7.3762,1576.8,1576.6,7.7478]
[1744293042131,1.2692,1576.7,1576.6,7.7478]
[1744293042519,7.3762,1576.8,1576.6,7.7478]
[1744293042724,1.2692,1576.7,1576.6,7.7478]
[1744293042932,1.26928,1576.6,1576.5,3.2078]
[1744293043134,1.26928,1576.6,1576.5,8.0175]
[1744293043431,10.54905,1576.8,1576.4,3.21733864]
[1744293043628,1.26936,1576.5,1576.4,3.21733864]
[1744293043830,1.26936,1576.5,1576.4,0.00953864]
[1744293044026,3.17387,1576.3,1575.8,3.2078]
[1744293044225,7.6648,1576.4,1575.9,0.77239799]
[1744293044534,7.6648,1576.4,1576.1,1.26965]
[1744293044733,7.6648,1576.4,1575.9,0.77239799]
[1744293044734,8.93428,1576.4,1576.0,11.2253]
[1744293044929,1.26938,1576.5,1576.2,3.2078]
[1744293045135,1.26961,1576.2,1576.1,8.459]
[1744293045329,9.0328,1576.4,1576.2,1.27912864]
[1744293045529,0.00953864,1576.5,1576.3,7.5244]
[1744293045732,0.00953864,1576.5,1576.2,0.00953864]
[1744293045941,1.26952,1576.3,1576.2,0.00953864]
[1744293047337,6.26952,1576.3,1576.2,0.00953864]
[1744293047632,12.87633864,1576.5,1576.2,0.00953864]
[1744293047830,7.77283864,1576.5,1576.2,6.39132864]
[1744293048041,7.77283864,1576.5,1576.3,7.5244]
[1744293048329,1.26944,1576.4,1576.3,7.5244]
[1744293048531,7.77283864,1576.5,1576.4,1.26944]
[1744293048731,9.04219864,1576.5,1576.4,4.47724]
[1744293048931,0.00953864,1576.5,1576.4,4.47724]
[1744293049133,0.00953864,1576.5,1576.4,12.93624]
[1744293049335,0.00953864,1576.5,1576.4,17.93624]
[1744293050427,5.1035,1577.1,1576.5,3.17331]
[1744293050631,4.26e-06,1577.2,1577.1,1.26888]
[1744293050832,4.26e-06,1577.2,1577.1,4.47668]
[1744293051332,4.26e-06,1577.2,1577.1,9.47668]
[1744293051735,0.00953864,1577.3,1577.1,9.47668]
[1744293051931,4.8355,1578.2,1577.2,7.2409]
[1744293052126,8.98525,1578.1,1577.9,1.26819]
[1744293052341,3.2078,1578.5,1577.9,7.2409]
[1744293052535,1.26805,1578.2,1578.0,1.26815]
[1744293052733,7.7171,1578.3,1578.2,1.268]
[1744293052941,22.47568029,1578.8,1578.6,1.26762]
[1744293053142,8.11e-06,1578.4,1578.3,8.50882]
[1744293053432,3.2078,1579.1,1578.3,8.50882]
[1744293053433,1.26712,1579.3,1578.3,22.42187]
[1744293053627,8.98413,1579.4,1579.3,0.01295912]
[1744293054126,7.70414088,1579.4,1579.3,1.26711]
[1744293054330,0.01307039,1579.9,1579.2,3.2078]
[1744293054526,0.00950811,1579.5,1579.4,4.47483]
[1744293054732,0.11018917,1581.0,1579.4,11.6628]
[1744293054938,3.2078,1581.4,1580.5,3.16539]
[1744293055127,3.2078,1582.0,1581.3,3.2078]
[1744293055443,40.8,1581.9,1581.3,3.2078]
[1744293055633,46.73279,1581.9,1581.5,3.2078]
[1744293055840,40.8,1581.9,1581.7,3.2078]
[1744293056141,1.26535,1581.5,1581.4,0.00947718]
[1744293056332,6.26535,1581.5,1581.4,0.00947718]
[1744293056532,1.26587,1580.9,1580.8,3.2078]
[1744293056844,1.26583,1580.9,1580.8,3.2078]
[1744293057044,5.0,1580.9,1580.8,3.2078]
[1744293057335,6.26583,1580.9,1580.8,3.2078]
[1744293057528,8.75111,1581.1,1580.8,3.2078]
[1744293057729,0.00947718,1581.0,1580.8,1.26587]
[1744293057930,0.00947718,1581.0,1580.9,3.2078]
[1744293058338,0.00947718,1581.0,1580.9,4.47363]
[1744293058533,0.00947718,1581.0,1580.9,3.2078]
[1744293059136,0.00947718,1581.0,1580.9,4.47363]
[1744293059332,0.00947718,1581.0,1580.9,3.2078]
[1744293059531,9.0418,1582.0,1580.9,17.91763]
[1744293059736,5.834,1582.0,1581.8,3.2078]
[1744293059937,0.11004596,1583.0,1581.8,3.2078]
[1744293060240,0.10901762,1584.2,1583.0,3.2078]
[1744293060436,7.3668,1583.6,1583.4,3.2078]
[1744293060646,10.5746,1583.6,1583.2,3.2078]
[1744293060940,1.26383,1583.4,1583.3,0.00947718]
[1744293061133,6.26383,1583.4,1583.3,3.21727718]
[1744293061334,5.0,1583.4,1583.3,3.21727718]
[1744293062039,7.3668,1583.6,1583.3,3.21727718]
[1744293062243,7.3668,1583.6,1583.5,3.2078]
[1744293062440,6.26367,1583.6,1583.5,3.2078]
[1744293062745,5.0,1583.6,1583.5,3.2078]
[1744293062943,1.26383,1583.4,1583.3,3.21727718]
[1744293063248,1.26383,1583.4,1583.3,0.00947718]
[1744293063436,6.26383,1583.4,1583.3,0.00947718]
[1744293063841,15.33983,1583.4,1583.3,7.18e-06]
[1744293064041,15.33983,1583.4,1582.8,3.2078]
[1744293064042,17.23571,1583.4,1582.8,3.2078]
[1744293064244,7.8663,1583.3,1582.6,3.2078]
[1744293064543,40.8,1583.2,1582.9,3.2078]
[1744293064937,3.2078,1583.1,1582.7,3.2078]
[1744293065242,1.26415,1583.0,1582.9,7.18e-06]
[1744293065542,40.80947718,1583.2,1583.1,0.109]
[1744293065746,0.00947718,1583.2,1583.1,3.3168]
[1744293066144,6.27346718,1583.2,1583.1,0.109]
[1744293066342,1.26415,1583.0,1582.9,7.18e-06]
[1744293066645,1.26463,1582.4,1582.3,3.2078]
[1744293066842,7.5413,1582.9,1582.3,3.2078]
[1744293067045,7.5413,1582.7,1581.9,7.8323]
[1744293067246,1.26454,1582.6,1582.5,3.2078]
[1744293067447,1.26506,1581.9,1581.5,0.632]
[1744293067643,3.1618,1582.3,1581.8,3.2078]
[1744293067839,8.80609,1582.2,1582.1,3.2078]
[1744293068040,1.26527,1581.6,1581.5,0.00947718]
[1744293068342,3.16258,1581.9,1581.5,0.00947718]
[1744293068543,1.26527,1581.6,1581.5,0.00947718]
[1744293068851,3.16377,1581.4,1580.5,3.2078]
[1744293069057,1.26606,1580.7,1580.5,3.2078]
[1744293069245,1.26595,1580.8,1580.5,3.2078]
[1744293069443,1.2659,1580.9,1580.7,3.2078]
[1744293069743,3.2078,1580.9,1580.3,3.2078]
[1744293069950,12.57893,1580.8,1580.2,19.60421874]
[1744293070152,12.57893,1580.8,1580.4,0.00947718]
[1744293070153,1.26615,1580.5,1580.4,0.00947718]
[1744293070748,9.42347718,1580.8,1580.4,3.21727718]
[1744293070943,0.00947718,1580.8,1580.4,3.21727718]
[1744293071150,0.00947718,1580.8,1580.4,0.00947718]
[1744293071349,1.2661,1580.6,1580.4,3.21727718]
[1744293071646,0.00947718,1580.8,1580.5,3.2078]
[1744293071845,1.26615,1580.5,1580.4,0.00947718]
[1744293072052,4.47395,1580.5,1580.4,7.18e-06]
[1744293072249,4.47395,1580.5,1579.9,3.2078]
[1744293072250,11.37333,1580.5,1579.9,3.2078]
[1744293072448,40.8,1580.4,1580.1,3.2078]
[1744293072651,40.8,1580.4,1580.3,3.2078]
[1744293072843,40.8,1580.4,1580.0,3.2078]
[1744293073051,44.0078,1580.4,1579.7,3.2078]
[1744293073352,3.2078,1579.9,1579.4,3.2078]
[1744293073756,1.267,1579.5,1579.2,4.47494]
[1744293074048,3.16699,1579.7,1578.9,3.2078]
[1744293074247,0.00947718,1579.8,1579.1,3.2078]
[1744293074453,0.00947718,1579.8,1579.3,3.2078]
[1744293074652,1.26691,1579.6,1579.3,3.2078]
[1744293074848,1.26703,1579.4,1579.3,3.2078]
[1744293075052,1.26724,1579.2,1578.9,4.47523]
[1744293075251,0.00947718,1579.8,1579.3,0.00639183]
[1744293075445,0.00947718,1579.8,1579.4,3.2078]
[1744293075646,3.2078,1580.1,1579.8,0.00348194]
[1744293075647,1.26663,1579.9,1579.8,0.00348194]
[1744293076052,9.47443,1579.9,1579.8,1.94e-06]
[1744293076349,18.89243,1579.9,1579.8,1.94e-06]
[1744293076659,1.26703,1579.4,1579.3,1.83e-06]
[1744293076952,0.01295729,1579.3,1579.0,3.2078]
[1744293077155,0.01295729,1579.3,1578.8,3.2078]
[1744293077355,0.01295729,1578.8,1578.7,3.2078]
[1744293077855,40.8,1579.2,1578.7,8.2078]
[1744293078156,0.00947718,1578.9,1578.6,0.00947718]
[1744293078551,1.26759,1578.7,1578.6,0.00947718]
[1744293078758,4.47539,1578.7,1578.6,7.18e-06]
[1744293079054,8.2078,1578.7,1577.6,4.01202627]
[1744293079243,3.2078,1577.8,1577.4,3.2078]
[1744293079644,9.42,1578.1,1577.4,3.2078]
[1744293079645,40.8,1577.7,1577.6,1.26848]
[1744293079846,40.8,1577.7,1577.3,3.2078]
[1744293080061,40.8,1577.7,1577.5,1.26855]
[1744293080350,40.80950811,1577.7,1577.4,3.2078]
[1744293080655,0.00950811,1577.7,1577.6,4.47628]
[1744293080847,9.425,1578.5,1577.8,3.1708]
[1744293081053,40.8,1578.4,1577.9,3.2078]
[1744293081250,40.8,1578.4,1577.6,3.2078]
[1744293081554,44.0078,1578.4,1577.8,3.2078]
[1744293081945,44.0078,1578.4,1577.5,7.8427]
[1744293081946,3.21730811,1578.3,1577.9,0.00950811]
[1744293082147,0.00950811,1578.3,1577.9,3.21730811]
[1744293082457,1.27748811,1578.3,1578.1,3.2078]
[1744293082661,1.27747811,1578.3,1578.1,3.2078]
[1744293082851,1.268,1578.2,1578.1,3.2078]
[1744293083358,3.17,1578.2,1577.9,3.21730811]
[1744293083553,1.26816,1578.0,1577.9,0.00950811]
[1744293083859,3.1706,1577.9,1577.4,3.2078]
[1744293084056,11.0916,1577.8,1577.1,3.2078]
[1744293084353,1.26864,1577.4,1577.3,3.2078]
[1744293084550,9.428,1577.5,1577.2,3.2078]
[1744293084750,18.31298,1577.5,1577.4,3.2078]
[1744293084945,18.32248811,1577.5,1577.4,3.2078]
[1744293085158,0.00950811,1577.5,1577.4,4.47644]
[1744293085557,0.00950811,1577.5,1577.4,9.47644]
[1744293086152,0.00950811,1577.5,1577.4,3.2078]
[1744293086359,0.00950811,1577.5,1577.4,4.47644]
[1744293086656,0.00950811,1577.5,1577.4,9.47644]
[1744293086960,0.00950811,1577.5,1577.4,3.2078]
[1744293086961,1.27806811,1577.5,1577.4,3.2078]
[1744293087152,0.00950811,1577.5,1577.4,4.47644]
[1744293087460,0.00950811,1577.5,1577.4,3.2078]
[1744293087660,0.00950811,1577.5,1577.4,9.47644]
[1744293087857,3.16977,1578.4,1577.5,3.17122]
[1744293088062,1.2682,1578.0,1577.8,3.2078]
[1744293088261,1.26794,1578.3,1577.8,6.37858]
[1744293088459,7.3054,1578.6,1578.1,3.2078]
[1744293088755,7.3054,1578.6,1578.3,3.2078]
[1744293088957,1.26784,1578.4,1578.3,3.2078]
[1744293089160,1.26784,1578.4,1578.3,3.21730811]
[1744293089459,6.26784,1578.4,1578.3,6.51e-06]
[1744293089664,1.2682,1578.0,1577.9,3.2078]
[1744293089955,1.26816,1578.0,1577.9,3.2078]
[1744293090357,10.5132,1578.3,1577.6,7.4966]
[1744293090659,3.1712,1577.6,1577.3,3.2078]
[1744293090859,3.1712,1577.6,1577.0,4.9916]
[1744293090860,1.26888,1577.1,1577.0,3.2078]
[1744293091059,3.1719,1577.3,1576.8,3.2078]
[1744293091361,1.26912,1576.9,1576.8,3.2078]
[1744293091861,1.26912,1576.9,1576.6,7.2549]
[1744293092051,1.2692,1576.7,1576.6,3.2078]
[1744293092462,7.6639,1576.8,1576.4,3.2078]
[1744293092463,1.26936,1576.5,1576.4,3.2078]
[1744293092653,10.83677,1576.8,1576.0,8.52464]
[1744293092654,3.17325,1576.6,1576.0,8.52464]
[1744293092858,7.6639,1576.5,1576.2,3.2078]
[1744293093061,7.6639,1576.5,1576.3,3.2078]
[1744293093265,0.00950811,1576.5,1576.4,1.26944]
[1744293093459,0.00950811,1576.5,1576.4,7.4822]
[1744293093660,0.00950811,1576.5,1576.4,13.75164]
[1744293093967,0.00950811,1576.5,1576.2,3.2078]
[1744293094263,1.26958,1576.3,1576.2,3.2078]
[1744293094562,12.60786,1576.3,1575.8,3.2078]
[1744293094771,3.17463,1575.9,1575.4,4.01373656]
[1744293094970,3.17463,1575.9,1575.5,10.69]
[1744293095265,40.8,1575.8,1575.6,3.2078]
[1744293095468,42.06998,1575.8,1575.6,3.2078]
[1744293095658,40.8,1575.8,1575.6,3.2078]
[1744293095968,1.27001,1575.7,1575.6,3.2078]
[1744293096362,1.27017,1575.5,1575.4,3.2078]
[1744293096667,7.2357,1575.7,1575.4,3.2078]
[1744293096867,1.27961811,1575.6,1575.4,3.2078]
[1744293097170,1.27959811,1575.6,1575.5,3.2078]
[1744293097359,0.00950811,1575.6,1575.5,3.2078]
[1744293097667,0.00950811,1575.6,1575.3,3.2078]
[1744293097867,0.00950811,1575.6,1575.2,9.24718]
[1744293097868,0.00950811,1575.6,1575.5,3.2078]
[1744293098069,1.27959811,1575.6,1575.5,3.2078]
[1744293098365,0.00950811,1575.6,1575.5,4.47797]
[1744293098561,0.00950811,1575.6,1575.5,9.47797]
[1744293098963,8.11e-06,1575.6,1575.5,9.47797]
[1744293099168,3.17304,1576.7,1576.2,1.26958]
[1744293099359,48.0357,1576.6,1576.2,1.26956]
[1744293099560,48.0357,1576.6,1576.4,3.2078]
[1744293099561,1.26936,1576.5,1576.4,3.2078]
[1744293099764,9.26926,1576.5,1576.4,3.2078]
[1744293099968,7.9999,1576.5,1576.4,3.2078]
[1744293100160,42.06934,1576.6,1576.4,4.47724]
[1744293100359,42.06934,1576.6,1576.3,0.00950811]
[1744293100360,43.98276811,1576.6,1576.3,0.00950811]
[1744293100564,9.26931,1576.5,1576.4,3.2078]
[1744293100762,1.26944,1576.4,1576.3,0.00950811]
[1744293100958,7.9999,1576.5,1576.3,3.21730811]
[1744293101171,9.2693,1576.5,1576.3,3.21730811]
[1744293101467,7.9999,1576.5,1576.3,4.48677811]
[1744293101659,1.26944,1576.4,1576.3,3.21730811]
[1744293101860,7.9999,1576.5,1576.3,3.21730811]
[1744293102061,1.26941,1576.5,1576.3,3.21730811]
[1744293102360,1.26944,1576.4,1576.3,0.00950811]
[1744293102559,1.26944,1576.4,1576.3,3.21730811]
[1744293102765,40.80950811,1576.6,1576.3,4.48677811]
[1744293102961,1.26939,1576.5,1576.4,7.4407]
[1744293103363,40.80950811,1576.6,1576.4,8.71011]
[1744293103567,40.80950811,1576.6,1576.4,7.4407]
[1744293103868,1.26944,1576.4,1576.3,3.21730811]
[1744293104069,1.26944,1576.4,1576.3,0.00950811]
[1744293104367,1.26985,1575.9,1575.8,3.2078]
[1744293104864,1.26985,1575.9,1575.8,4.02657276]
[1744293105270,3.17382,1576.3,1575.8,4.02657276]
[1744293105461,3.17483,1575.8,1574.7,3.2078]
[1744293105664,1.27057,1575.1,1574.9,7.2834]
[1744293105866,40.8,1575.1,1575.0,1.27057]
[1744293106166,0.00950811,1575.4,1575.0,3.2078]
[1744293106367,0.00950811,1575.4,1575.3,1.27033]
[1744293106770,40.8,1575.8,1575.3,13.55373]